Cogmind - Beta 17 @@@ ROGUE MODE // 2026.07.03 @ 20:17:11 Player: mischief_2000 Result: Destroyed by Y-45 Defender with Heavy Assault Rifle Performance ------------- Evolutions (2) 1000 Regions Visited (6) 1200 Robots Destroyed (104) 520 Value Destroyed (4031) 4031 Prototype IDs (2) 40 Alien Tech Used (0) 0 Bonus (2672) 2672 TOTAL SCORE: 9463 Bonus ------- High Alert Combat Kills 643 Follower Combat Kills 701 Entered Garrisons 400 Used RIF Installer 1000 Friendly Fire -72 Cogmind --------- Core Integrity 0/550 Matter 220/300 Energy 48/280 System Corruption 7% Temperature Warm (114) Movement Treading (240) Ox2 Location -8/Garrison Parts ------- > --- POWER (1) -------- Heavy Ion Engine > --- PROPULSION (4) --- Light Treads Light Treads Light Treads > --- UTILITY (4) ------ Huge Storage Unit Relay Coupler [NC] (14) > --- WEAPON (2) ------- Advanced Beam Rifle Shock Bomb Launcher > --- INVENTORY (25) --- Heavy Ion Engine Light Nuclear Core Advanced Treads Carbon-fiber Leg Improved Carbon-fiber Leg Compact Wheel Large Storage Unit High-capacity Storage Unit High-capacity Matter Pod (200) High-capacity Matter Pod (200) Seismic Detector Relay Coupler [NC] (24) Relay Coupler [Demolisher] (24) Relay Coupler [Hunter] (13) Shock Rifle Advanced Beam Rifle Assault Rifle Remote Datajack Remote Datajack Mining Laser Peak State ------------ > --- POWER ------------ Heavy Ion Engine > --- PROPULSION ------- Light Treads Light Treads Light Treads Light Treads > --- UTILITY ---------- Huge Storage Unit Hardened Medium Armor Plating Relay Coupler [Sentry] Relay Coupler [Specialist] > --- WEAPON ----------- Advanced Beam Rifle Advanced Beam Rifle > --- INVENTORY -------- Heavy Ion Engine Light Nuclear Core Light Treads Advanced Treads Carbon-fiber Leg Compact Wheel Improved Heat Sink Large Storage Unit High-capacity Storage Unit High-capacity Matter Pod High-capacity Matter Pod Seismic Detector Hardened Medium Armor Plating Relay Coupler [NC] Relay Coupler [NC] Relay Coupler [Swarmer] Relay Coupler [Demolisher] Relay Coupler [Hunter] Assault Rifle Heavy Assault Rifle Shock Bomb Launcher Remote Datajack Remote Datajack Mining Laser [Rating: 33] Favorites ----------- Power Heavy Ion Engine Engine Heavy Ion Engine Power Core Light Nuclear Core Propulsion Light Treads Treads Light Treads Leg Aluminum Leg Wheel Compact Wheel Utility Huge Storage Unit Device Improved Heat Sink Storage Huge Storage Unit Processor Target Analyzer Hackware Relay Coupler [Sentry] Protection Hardened Medium Armor Plating Weapon Advanced Beam Rifle Energy Gun Advanced Beam Rifle Energy Cannon Improved EM Pulse Cannon Ballistic Gun Assault Rifle Launcher Grenade Launcher Special Weapon Remote Datajack Build | -11 -10 -9 -8 -8 -8 -8 ------- Run | Yrd Mat Mat Mat Gar Mat Gar Slots Evolved 4 | . . 2 2 . . . Power . | . . . . . . . Propulsion 2 | . . 1 1 . . . Utility 2 | . . 1 1 . . . Weapon . | . . . . . . . Parts Attached 68 | 7 4 8 1 26 19 3 Power 5 | 1 . 1 . 3 . . Engine 4 | 1 . 1 . 2 . . Core 1 | . . . . 1 . . Reactor . | . . . . . . . Propulsion 24 | 2 1 1 1 10 7 2 Treads 18 | 2 . . 1 6 7 2 Leg 4 | . . . . 4 . . Wheel 2 | . 1 1 . . . . Hover . | . . . . . . . Flight . | . . . . . . . Utility 18 | 2 2 3 . 4 7 . Device 4 | 1 . 1 . 1 1 . Storage 4 | 1 2 1 . . . . Processor 1 | . . . . 1 . . Hackware 5 | . . . . . 5 . Protection 4 | . . 1 . 2 1 . Artifact . | . . . . . . . Weapon 21 | 2 1 3 . 9 5 1 Energy Gun 6 | 1 . . . 1 3 1 Energy Cannon 3 | . . . . 3 . . Ballistic Gun 5 | 1 . 2 . 2 . . Ballistic Cannon . | . . . . . . . Launcher 5 | . . 1 . 3 1 . Special Weapon 2 | . 1 . . . 1 . Impact Weapon . | . . . . . . . Slashing Weapon . | . . . . . . . Piercing Weapon . | . . . . . . . Special Melee Weapon . | . . . . . . . Unidentified Prototypes 2 | . . . . 1 1 . Parts Lost 23 | . 1 4 . 10 . 8 Power 2 | . . 1 . 1 . . Propulsion 9 | . . 1 . 4 . 4 Utility 6 | . 1 1 . 1 . 3 Weapon 6 | . . 1 . 4 . 1 Highest Loss Streak 4 | . 1 4 . 3 . 4 To Critical Strikes 1 | . . . . 1 . . Average Backups 18 | 5 8 11 20 16 24 22 Power 1 | . 1 . 2 1 1 2 Propulsion 4 | 3 4 4 8 3 4 5 Utility 7 | . 1 3 3 6 11 8 Weapon 3 | 1 2 3 7 4 4 4 Tool/Special . | . . . . . . . Unused Backups 12 | . . . . . . 12 Power 1 | . . . . . . 1 Propulsion 4 | . . . . . . 4 Utility 6 | . . . . . . 6 Weapon . | . . . . . . . Tool/Special 1 | . . . . . . 1 Average Slot Usage (%) 92 | . 97 82 72 84 99 95 Engine 8 | . 14 9 9 5 9 9 Treads 28 | . 20 12 9 24 36 35 Leg 2 | . . . . 7 . . Wheel 3 | . 7 16 18 3 . . Device 4 | . 11 8 9 1 2 7 Storage 9 | . 14 11 9 9 9 9 Processor 2 | . . . . 4 2 . Hackware 5 | . . . . . 12 9 Protection 6 | . . 2 . 9 8 6 Energy Gun 9 | . 13 11 9 3 12 10 Energy Cannon 1 | . . . . 3 1 . Ballistic Gun 4 | . 14 9 9 3 . 4 Launcher 1 | . . 1 . 3 . . Special Weapon 2 | . . . . 3 3 2 Peak Build Rating 33 | 7 7 12 13 28 33 28 Average Rating 20 | 5 6 9 12 18 29 25 On Entrance 12 | . 7 7 12 13 28 23 Avg Prop Armor Cover (%) 9 | . 13 12 11 6 . 6 Naked Turns . | . . . . . . . Heaviest Build 113 | 13 88 52 52 113 113 102 Greatest Support 80 | 40 40 26 26 80 80 80 Greatest Overweight (x) 5 | . 5 3 1 2 1 2 Average Overweight (x) . | . 2 1 1 . 1 1 Largest Inventory Capacity 25 | 8 25 20 20 25 25 25 Average Capacity 20 | 7 15 19 20 18 25 25 Most Carried 25 | 8 10 20 20 23 25 25 Average Carried 18 | 6 8 11 19 16 24 22 Final Capacity 25 | 8 15 20 20 25 25 25 Final Carried 25 | 8 10 20 19 23 25 20 Class Distribution -------------------- 45% | Bothacker-Mutant 31% | Mutant 22% | Scavenger-Mutant Dominant Class ---------------- Mutant | -10/Materials Mutant | -9/Materials Mutant | -8/Materials Scavenger-Mutant | -8/Garrison Bothacker-Mutant | -8/Materials Bothacker-Mutant | -8/Garrison Resources | -11 -10 -9 -8 -8 -8 -8 ----------- Run | Yrd Mat Mat Mat Gar Mat Gar Matter Collected 2331 | 342 165 94 . 1082 475 173 Remotely . | . . . . . . . Salvage Created 3755 | 234 368 551 . 1159 1054 389 Parts 207 | 20 23 44 . 50 58 12 Haulers Intercepted 7 | . . 4 . . 3 . Recyclers Shooed 5 | 3 1 . . . 1 . Parts Field Recycled . | . . . . . . . Retrieved Matter . | . . . . . . . Parts Self-Destructed . | . . . . . . . Prevented . | . . . . . . . Parts Restored . | . . . . . . . Kills | -11 -10 -9 -8 -8 -8 -8 ------- Run | Yrd Mat Mat Mat Gar Mat Gar Combat Hostiles Destroyed 74 | . 8 11 . 35 12 8 Guns 38 | . 8 7 . 8 9 6 Cannons 3 | . . . . 2 1 . AOE 30 | . . 4 . 24 2 . Classes Destroyed 12 | 3 4 2 . 3 . . Worker 9 | 2 2 2 . . 3 . Builder 2 | . 1 . . . 1 . Tunneler 4 | 4 . . . . . . Hauler 7 | . . 4 . . 3 . Recycler 1 | 1 . . . . . . Watcher 6 | . 2 1 . . 3 . Swarmer 20 | . 5 7 . 8 . . Grunt 32 | . 3 . . 18 6 5 Sentry 12 | . . 4 . 3 5 . Specialist 3 | . . . . 2 1 . Hunter 2 | . . . . 1 1 . Programmer 6 | . . . . 3 . 3 Best Kill Streak 10 | 3 3 7 . 10 6 3 Combat Bots Only 10 | . 3 6 . 10 3 3 Max Kills in Single Turn 6 | 1 2 1 . 6 3 1 Gunslinging 1 | . 1 . . . . . Exploded 6 | . . 1 . 6 1 . Melee . | . . . . . . . Uniques/NPCs Destroyed . | . . . . . . . Combat | -11 -10 -9 -8 -8 -8 -8 -------- Run | Yrd Mat Mat Mat Gar Mat Gar Hostile Shots Fired 487 | . 45 68 . 164 84 126 Missed 144 | . 11 24 . 48 30 31 Hits 343 | . 34 44 . 116 54 95 Melee 1 | . . . . . . 1 Projectile 342 | . 34 44 . 116 54 94 Critical Strikes 17 | . . 2 . 5 3 7 Part Disruptions 1 | . . . . . . 1 Damage Taken 5008 | . 376 493 . 1815 879 1445 Core 718 | . 81 80 . 269 77 211 Absorbed by Shields 43 | . . . . . . 43 Core Remaining (%) 82 | 100 67 80 . . . . Volleys Fired 332 | 24 35 47 . 99 82 45 Largest 2 | 2 2 2 . 2 2 2 Hottest 138 | 70 100 80 . 138 132 122 Shots Fired 584 | 48 68 92 . 166 135 75 Gun 441 | 48 67 87 . 88 85 66 Cannon 41 | . . . . 26 15 . Launcher 59 | . . 5 . 36 10 8 Special 43 | . 1 . . 16 25 1 Kinetic 178 | 24 34 42 . 52 4 22 Thermal 285 | 24 34 45 . 60 81 41 Explosive 41 | . . 5 . 36 . . Electromagnetic 55 | . . . . 18 25 12 Robot Hit Streak 17 | 7 8 9 . 17 11 13 Robot Miss Streak 8 | 2 8 4 . 4 4 3 Penetration Max . | . . . . . . . Secondary Targets 8 | . 1 4 . 2 . 1 Max Gunslinging Chain 1 | . 1 1 . 1 . 1 Shots Hit Robots 330 | 33 32 55 . 94 70 46 Core Hits 187 | 8 18 26 . 90 32 13 Critical Kills 2 | . . . . 2 . . Critical Parts Destroyed 1 | 1 . . . . . . Critical Strikes 19 | 3 1 3 . 3 4 5 Burn 16 | 2 1 3 . 1 4 5 Destroy 3 | 1 . . . 2 . . Melee Attacks . | . . . . . . . Impact . | . . . . . . . Slashing . | . . . . . . . Piercing . | . . . . . . . Sneak Attacks . | . . . . . . . Combat Hostiles . | . . . . . . . Follow-up Attacks . | . . . . . . . Damage Inflicted 8400 | 394 429 810 . 3865 1700 1202 Guns 4244 | 394 429 644 . 920 967 890 Cannons 697 | . . . . 473 224 . Explosions 3426 | . . 166 . 2439 509 312 Melee . | . . . . . . . Ramming 33 | . . . . 33 . . Kinetic 1600 | 217 200 261 . 592 59 271 Thermal 2871 | 177 229 383 . 450 1047 585 Explosive 2605 | . . 166 . 2439 . . Electromagnetic 1291 | . . . . 351 594 346 Impact . | . . . . . . . Slashing . | . . . . . . . Piercing . | . . . . . . . Highest Corruption 7 | . 1 . . 2 2 7 Average Corruption 1 | . 1 . . 1 2 4 Corruption Purged . | . . . . . . . Corruption Blocked . | . . . . . . . Effects 61 | . 2 . . 17 29 13 Message Errors 12 | . . . . 3 7 2 Matter Fused 14 | . 1 . . 4 6 3 Heat Flow Errors 3 | . . . . . 1 2 Energy Discharges 8 | . . . . 4 4 . Parts Rejected 2 | . . . . . 1 1 Parts Fused 1 | . . . . . 1 . Data Loss (minor) 10 | . . . . 2 7 1 Data Loss (major) 7 | . 1 . . 2 2 2 Misfires 2 | . . . . 2 . . Alerts 2 | . . . . . . 2 Overload Shots . | . . . . . . . Overflow Damage 65 | . . . . 65 . . Projectiles . | . . . . . . . Explosions 65 | . . . . 65 . . Melee . | . . . . . . . Knockbacks 1 | . . . . 1 . . Impact 1 | . . . . 1 . . Kinetic . | . . . . . . . Secondary . | . . . . . . . Self-Inflicted Damage 214 | . . 2 . 194 . 18 Shots 15 | . . 1 . 13 . 1 Rammed 2 | . . 1 . 1 . . Targets Rammed 2 | . . 1 . 1 . . Kicked . | . . . . . . . Crushed . | . . . . . . . Highest Temperature 434 | 54 210 18 . 372 372 434 Average Temperature 85 | 19 47 15 . 94 110 90 Received Heat Transfer 1550 | . 117 117 . 540 423 353 Effects 3 | . . . . 2 . 1 Interference 1 | . . . . . . 1 Short Circuit 2 | . . . . 2 . . Siege Activations . | . . . . . . . Martial Activations . | . . . . . . . Shielding Activations . | . . . . . . . Robots Disrupted . | . . . . . . . Combat Hostiles . | . . . . . . . Robots Corrupted 4 | . . . . 2 . 2 Combat Hostiles 2 | . . . . . . 2 Parts Fried 4 | . . . . 1 2 1 Impact Corruptions . | . . . . . . . Robots Melted 1 | . . . . 1 . . Combat Hostiles 1 | . . . . 1 . . Parts Melted 10 | . 3 3 . 2 2 . Heat Transferred 7079 | 666 740 1332 . 861 2148 1332 Parts Sabotaged . | . . . . . . . Parts Stolen . | . . . . . . . Parts Stripped . | . . . . . . . Power Chain Reactions 2 | . . . . . 2 . Alert | -11 -10 -9 -8 -8 -8 -8 ------- Run | Yrd Mat Mat Mat Gar Mat Gar Maximum Alert Level 4 | . . . . 4 3 2 Low Security (%) 24 | 100 100 100 100 4 . . Level 1 7 | . . . . 16 . 34 Level 2 43 | . . . . 9 90 65 Level 3 12 | . . . . 29 9 . Level 4 11 | . . . . 39 . . Level 5 . | . . . . . . . High Security . | . . . . . . . Max Security . | . . . . . . . Peak Influence 1431 | 5 70 170 67 1431 727 541 Initial 697 | . . 11 67 43 697 361 Average 566 | 1 24 74 67 918 642 435 Influence Increases 3342 | 35 231 339 . 1548 929 260 Destroy 0b10 Robot/C 1940 | . 160 220 . 880 520 160 Destroy 0b10 Robot/NC 165 | 35 25 35 . 10 60 . Destroy Leader 360 | . 44 70 . 50 176 20 Allied During Kill 162 | . . . . 78 84 . Successful Hack 53 | . . 2 . 28 23 . Select Force Hacks 30 | . . . . . 30 . Disable Machine 30 | . . . . . 30 . Anti-Garrison Action 400 | . . . . 350 . 50 Destroy Structure 202 | . 2 12 . 152 6 30 Influence Decreases 2811 | 35 202 208 93 184 1804 285 Entered New Map 1064 | . . 18 93 24 734 195 Time Decay 1017 | 35 192 170 . . 620 . Lost Part 210 | . 10 20 . 100 . 80 Lost Ally 220 | . . . . 60 150 10 Purge Threat 300 | . . . . . 300 . Squads Dispatched 6 | . 1 . . . 5 . Investigation 1 | . . . . . 1 . Extermination . | . . . . . . . Reinforcement 4 | . 1 . . . 3 . Assault 1 | . . . . . 1 . Garrison . | . . . . . . . Intercept . | . . . . . . . Searches Triggered . | . . . . . . . Construction Impeded . | . . . . . . . Haulers Reinforced . | . . . . . . . Active Scanning Responses . | . . . . . . . Cargo Convoy Interrupts . | . . . . . . . Stealth | -11 -10 -9 -8 -8 -8 -8 --------- Run | Yrd Mat Mat Mat Gar Mat Gar Distress Signals 7 | . 1 1 . . 5 . Communications Jammed . | . . . . . . . Distress Signals . | . . . . . . . Times Spotted 122 | . 13 15 . 41 41 12 Peak Tracking Total 8 | . 3 7 . 7 8 5 Tactical Retreats . | . . . . . . . Traps | -11 -10 -9 -8 -8 -8 -8 ------- Run | Yrd Mat Mat Mat Gar Mat Gar Traps Triggered 4 | . 1 . . . 1 2 Indirectly 1 | . . . . . 1 . Trap Hack Attempts . | . . . . . . . Triggered . | . . . . . . . Disarmed . | . . . . . . . Reprogrammed . | . . . . . . . Reused . | . . . . . . . Traps Extracted . | . . . . . . . Installed . | . . . . . . . Triggered . | . . . . . . . Machines | -11 -10 -9 -8 -8 -8 -8 ---------- Run | Yrd Mat Mat Mat Gar Mat Gar Machines Disabled 8 | . 1 . . 4 2 1 Max in Single Turn 1 | . 1 . . 1 . 1 Garrison Relay 6 | . . . . 5 . 1 Machines Repaired . | . . . . . . . Machines Dismantled . | . . . . . . . Machines Sabotaged . | . . . . . . . Overloaded Fab Kills . | . . . . . . . Hacking | -11 -10 -9 -8 -8 -8 -8 --------- Run | Yrd Mat Mat Mat Gar Mat Gar Machines Accessed 16 | . 4 1 1 4 6 . Terminals 11 | . 4 . . 4 3 . Fabricators . | . . . . . . . Repair Stations . | . . . . . . . Recycling Units . | . . . . . . . Scanalyzers 3 | . . 1 . . 2 . Garrison Access 2 | . . . 1 . 1 . Total Hacks 46 | . 9 5 2 10 20 . Successful 25 | . 4 5 1 2 13 . Failed 21 | . 5 . 1 8 7 . Catastrophic 3 | . . . . 1 2 . Database Lockouts . | . . . . . . . Manual 15 | . 3 . . . 12 . Terminals 31 | . 9 . . 10 12 . Fabricators . | . . . . . . . Repair Stations . | . . . . . . . Recycling Units . | . . . . . . . Scanalyzers 12 | . . 5 . . 7 . Garrison Access 3 | . . . 2 . 1 . Terminal Hacks 10 | . 3 . . 2 5 . Part Schematic 1 | . 1 . . . . . Robot Analysis 2 | . 2 . . . . . Emergency Access Points 1 | . . . . 1 . . Garrison Index 1 | . . . . . 1 . Unreport Threat 2 | . . . . . 2 . Hauler Manifests 1 | . . . . . 1 . Zone Layout 1 | . . . . . 1 . Garrison Registry 1 | . . . . 1 . . Fabricator Hacks . | . . . . . . . Repair Station Hacks . | . . . . . . . Recycling Unit Hacks . | . . . . . . . Scanalyzer 10 | . . 5 . . 5 . Insert Component 4 | . . 2 . . 2 . Analyze 4 | . . 2 . . 2 . Retrieve Study 2 | . . 1 . . 1 . Garrison Access Hacks 2 | . . . 1 . 1 . Unlock Access 2 | . . . 1 . 1 . Unauthorized Hacks 3 | . 1 . . . 2 . Terminals 2 | . 1 . . . 1 . Botnet 2 | . 1 . . . 1 . Fabricators . | . . . . . . . Repair Stations . | . . . . . . . Recycling Units . | . . . . . . . Scanalyzers 1 | . . . . . 1 . Extract 1 | . . . . . 1 . Garrison Access . | . . . . . . . Data Cores Recovered . | . . . . . . . Used . | . . . . . . . Hacking Detections 11 | . 4 . . 3 4 . Full Trace Events 2 | . 1 . . 1 . . Feedback Events . | . . . . . . . Feedback Blocked . | . . . . . . . Robot Schematics Acquired . | . . . . . . . Robots Built . | . . . . . . . Authchips . | . . . . . . . Time . | . . . . . . . Total Robot Build Rating . | . . . . . . . Part Schematics Acquired 6 | . 1 2 . . 3 . Parts Built . | . . . . . . . Authchips . | . . . . . . . Time . | . . . . . . . Total Part Build Rating . | . . . . . . . Part Studies Acquired 2 | . . 1 . . 1 . Parts Repaired . | . . . . . . . Time . | . . . . . . . Parts Recycled . | . . . . . . . Recycled Matter . | . . . . . . . Retrieved Matter . | . . . . . . . Retrieved Components . | . . . . . . . Parts Scanalyzed 4 | . . 2 . . 2 . Part Schematics Acquired 4 | . . 2 . . 2 . Parts Damaged . | . . . . . . . Bothacking | -11 -10 -9 -8 -8 -8 -8 ------------ Run | Yrd Mat Mat Mat Gar Mat Gar Used RIF Installer 2 | . . . . 1 . 1 Structural Interface 1 | . . . . . . 1 Robots Hacked 13 | . . . . . 13 . Non-combat 3 | . . . . . 3 . Combat 10 | . . . . . 10 . Robot Hacks Applied 13 | . . . . . 13 . drop_inventory 1 | . . . . . 1 . overload_power 1 | . . . . . 1 . reboot_system 3 | . . . . . 3 . go_dormant 1 | . . . . . 1 . formatsys_low 2 | . . . . . 2 . formatsys_high 5 | . . . . . 5 . Relay Couplers Released 27 | . . . . 24 . 3 Machine Destruction 23 | . . . . 20 . 3 Programmers 4 | . . . . 4 . . Attached 5 | . . . . . 5 . Fabnet Peak Effective % . | . . . . . . . Robots Rewired 4 | . . . . 4 . . Allies Hacked 2 | . . . . 2 . . Hacks Repelled . | . . . . . . . Allies | -11 -10 -9 -8 -8 -8 -8 -------- Run | Yrd Mat Mat Mat Gar Mat Gar Total Allies 13 | . . . . 6 7 . Largest Group 6 | . . . . 6 4 1 Highest-Rated Group 140 | . . . . 140 63 10 Highest-Rated Ally 40 | . . . . 31 40 10 Total Orders . | . . . . . . . Ally Attacks 132 | . . . . 52 80 . Total Damage 2220 | . . . . 707 1513 . Kills 25 | . . . . 9 16 . Allies Corrupted . | . . . . . . . Allies Melted . | . . . . . . . Intel | -11 -10 -9 -8 -8 -8 -8 ------- Run | Yrd Mat Mat Mat Gar Mat Gar Active Infowar (turns) 684 | 153 531 . . . . . Seismic 684 | 153 531 . . . . . Robot Analysis Total 2 | . 2 . . . . . Derelict Logs Recovered . | . . . . . . . Drone Launches . | . . . . . . . Drone Recoveries . | . . . . . . . Exploration | -11 -10 -9 -8 -8 -8 -8 ------------- Run | Yrd Mat Mat Mat Gar Mat Gar Turns Passed 5382 | 234 632 378 8 1602 2097 431 Spaces Moved 2345 | 94 326 186 7 735 861 136 Core 5 | 5 . . . . . . Treads 1736 | 89 128 . . 522 861 136 Legs 86 | . . . . 86 . . Wheels 518 | . 198 186 7 127 . . Hover . | . . . . . . . Flight . | . . . . . . . Fastest Speed 50 | 50 115 100 100 100 200 200 Average Speed 176 | 154 154 107 100 158 213 201 Slowest Speed 260 | 160 175 135 100 260 240 240 Overloaded Moves . | . . . . . . . Propulsion Burnouts . | . . . . . . . Robots Hopped . | . . . . . . . Potential Cave-ins . | . . . . . . . Cave-ins Triggered . | . . . . . . . Exploration Rate (%) 40 | 4 67 28 3 79 74 26 Regions Visited 6 Branch Regions . Pre-discovered Areas . | . . . . . . . Known Exits Taken 2 | . . . 1 . 1 . Unknown Exits Taken 3 | 1 1 1 . . . . Scrap Searched . | . . . . . . . Spaces Dug 1 | . 1 . . . . . Terrain Destroyed 86 | . 1 13 . 69 3 . Melee . | . . . . . . . Projectile 1 | . 1 . . . . . AOE 85 | . . 13 . 69 3 . Terrain Rammed . | . . . . . . . Walls Destroyed . | . . . . . . . Machines Disabled . | . . . . . . . Actions | -11 -10 -9 -8 -8 -8 -8 --------- Run | Yrd Mat Mat Mat Gar Mat Gar Total 2968 | 132 382 274 8 972 987 213 Wait 58 | . 13 19 . 9 3 14 Move 2341 | 93 325 185 7 734 861 136 Hop . | . . . . . . . Pick Up 49 | 8 2 13 . 19 6 1 Fast Attach 24 | 7 . 3 . 10 3 1 Attach 24 | . . 3 1 12 2 6 Detach 2 | . . . . 2 . . Swap 58 | . 6 3 . 21 22 6 Drop 23 | . 1 . . 14 8 . Fire 332 | 24 35 47 . 99 82 45 Melee . | . . . . . . . Ram 2 | . . 1 . 1 . . Kick . | . . . . . . . Crush . | . . . . . . . Escape Stasis 4 | . . . . . . 4 Rewire 51 | . . . . 51 . . Trap . | . . . . . . . Miscellaneous . | . . . . . . . Route ------- -11/Scrapyard -10/Materials (discovered 3 exits: *Mat x2 / [*Min]) -9/Materials (discovered 2 exits: *Mat / [*Min]) -8/Materials -8/Garrison (discovered 3 exits: *Mat x3) -8/Materials (discovered 2 exits: [*Fac] / Gar) -8/Garrison History --------- Turn | Location | Event 5 | -11/Scrapyard | Discovered new exit (range 14) 235 | -11/Scrapyard | Entered Materials 312 | -10/Materials | Build established: Mutant 579 | -10/Materials | Discovered new exit (range 16) 671 | -10/Materials | Discovered new exit (range 15) 832 | -10/Materials | Discovered new exit (range 15) 867 | -10/Materials | Entered another Materials area 867 | -9/Materials | Evolved 2 slots: Propulsion x1, Utility x1 1045 | -9/Materials | Lost 4 parts (1p1n1u1w) 1082 | -9/Materials | Discovered new exit (range 16) 1216 | -9/Materials | Discovered new exit (range 14) 1245 | -9/Materials | Entered another Materials area 1245 | -8/Materials | Evolved 2 slots: Propulsion x1, Utility x1 1253 | -8/Materials | Identified exit to Garrison 1253 | -8/Materials | Entered Garrison 1261 | -8/Garrison | Triggered checkpoint 1376 | -8/Garrison | Destroyed 10 combat bots 1381 | -8/Garrison | Lost 3 parts (1n1u1w) 1429 | -8/Garrison | Triggered checkpoint 1434 | -8/Garrison | Garrison Relay disabled 1465 | -8/Garrison | Lost 3 parts (1p2n) 1583 | -8/Garrison | Triggered checkpoint 1589 | -8/Garrison | Triggered checkpoint 1619 | -8/Garrison | Destroyed 7 combat bots 1717 | -8/Garrison | Rescued a captive Derelict 1717 | -8/Garrison | Rescued a captive Derelict 1760 | -8/Garrison | Discovered new exit (range 11) 1817 | -8/Garrison | Triggered checkpoint 1917 | -8/Garrison | Garrison Relay disabled 1953 | -8/Garrison | Discovered new exit (range 92) 1953 | -8/Garrison | Discovered new exit (range 76) 1953 | -8/Garrison | Discovered new exit (range 17) 2007 | -8/Garrison | Triggered checkpoint 2054 | -8/Garrison | Garrison Relay disabled 2117 | -8/Garrison | Garrison Relay disabled 2149 | -8/Garrison | Build established: Scavenger-Mutant 2223 | -8/Garrison | Triggered checkpoint 2328 | -8/Garrison | Installed Relay Interface Framework 2397 | -8/Garrison | Triggered checkpoint 2419 | -8/Garrison | Garrison Relay disabled 2855 | -8/Garrison | Entered Materials 2855 | -8/Materials | Accompanied by 3 allies 2899 | -8/Materials | Build established: Bothacker-Mutant 3471 | -8/Materials | Core integrity fell below 50% 4487 | -8/Materials | Discovered new exit (range 13) 4855 | -8/Materials | First assault squad dispatched 4952 | -8/Materials | Identified exit to Garrison 4952 | -8/Materials | Entered Garrison 4952 | -8/Garrison | Accompanied by 1 ally 5018 | -8/Garrison | Expanded RIF knowledge: Structural Interface 5088 | -8/Garrison | Triggered checkpoint 5130 | -8/Garrison | Core integrity fell below 20% 5188 | -8/Garrison | Lost 4 parts (2n1u1w) 5212 | -8/Garrison | Garrison Relay disabled 5355 | -8/Garrison | Triggered checkpoint 5383 | -8/Garrison | Destroyed by Y-45 Defender with Heavy Assault Rifle Last Messages --------------- 05300_ RIF reveals location of phase wall. 05321_ T%H4JJPJJF:NV:1XTPMK 05328_ RIF reveals location of phase wall. 05328_ C-30 ARC bursts open, deploying its payload. 05328_ G-50 Soldier unfolds itself. 05328_ G-47 Trooper unfolds itself. 05340_ Imp. Heat Sink destroyed. 05343_ Hrd. Medium Armor Plating destroyed. 05352_ G-50 Soldier system terminally corrupted. 05354_ G-47 Trooper system terminally corrupted. 05354_ Lgt. Nuclear Core fried. 05355_ Beams of light sweep through the air. An alarm sounds. 05356_ System corrupted: Lgt. Treads+ rejected. 05357_ Lgt. Treads+ destroyed. 05359_ Technician 3b destroyed. 05360_ Acquired Lgt. Treads+. 05368_ Critical hit (Burn: +37). 05371_ G-47 Trooper destroyed. 05380_ Lgt. Treads+ destroyed. Map ----- +----------------------------------------------------+ | ?????????????????????????????????????????????????? | | ?????????????????????????????????????????????????? | | ?????????????????????????????????????????????????? | | ?????????????????????????????????????????????????? | | ?????????????????????????????????????????????????? | | ?????????????????????????????????????????????????? | | ?????????????????????????????????????????????????? | | ?????????????????????????????????????????????????? | | ?????????????????????????????????????????????????? | | ?????????????????????????????????????????????????? | | ?????????????????????????????????????????"???????? | | ????????????????????????????????????????? ?????? | | ???????????????????????????????????????? ?????? | | ??????????????????????????????????????? ?????? | | ?????????????????????????????????????? #??????? | | ????????????????????????????????????## ##?????? | | ??????????????????????????????????? ??????? | | ???????????????????????????????????% ????????? | | ?????????????????????????????????? ?????????? | | ?????????????????????????????????? ???????????? | | ????????????????????????????????? #????????????? | | ???????????????????????########## ## #??????? | | ???????????????????????# Y % ?? | | ???????????????????????# b !%=% ?? | | ???????????????????????#Yl#######* #?? | | ???????????????????????# @#?????? ##""""###+#??? | | ???????????????????????# #?????? #????????????? | | ???????????????????????# [#?????? #????????????? | | ???????????????????????# %#######? #????????????? | | ???????????????????????# +? +????????????? | | ???????????????????????# #######? #????????????? | | ???????????????????????# #??????? #????????????? | | ??????##################++####### ^^#????????????? | | ????### + " ^ ^^#????????????? | | ????#"# " " ^ #????????????? | | ????#"! ### ^ #????????????? | | ????# ! #?# ######################????????????? | | ????#"! #?# #?????????????????????????????????? | | ????#"#^ #?# #?????????????????????????????????? | | ????###^ #?#[ #?????????????????????????????????? | | ??????# #?#%! #?????????????????????????????????? | | ??????# #?#! #?????????????????????????????????? | | #???### #?# #?????????????????????????????????? | | ##### #?# #?????????????????????????????????? | | ! + #?# #?????????????????????????????????? | | ## ## #?# #?????????????????????????????????? | | ##=#### #?# #?????????????????????????????????? | | ?# #??# #?# #?????????????????????????????????? | | ?# #??# ### #?????????????????????????????????? | | ?# #??# = = #?????????????????????????????????? | +----------------------------------------------------+ Best States ------------- Heat Dissipation 53 Energy Generation 14 Energy Capacity 280 Matter Stores 300 Matter Capacity 300 Sight Range 16 Terrain Scan Density 10 Armor Coverage 450 Evasion (%) 55 Target Analysis 5 Recoil Reduction 4 Relay Coupler Types 2 Relay Coupler Value 35 Item Schematics ----------------- Hcp. Storage Unit | -10/Materials | Hacked Huge Storage Unit | -9/Materials | Scanalyzed Lrg. Storage Unit | -9/Materials | Scanalyzed Remote Datajack | -8/Materials | Scanalyzed Hrd. Medium Armor Plating | -8/Materials | Scanalyzed Hrd. Light Armor Plating | -8/Materials | Extracted Robot Schematics ------------------ None Fabricated ------------ Nothing Repaired ---------- Nothing Studied --------- Com. Wheel | -9/Materials | Hacked Lgt. Treads | -8/Materials | Hacked Alien Tech Used ----------------- None Achievements -------------- Oppo Buddy Challenges ------------ None Game ------ Seed RefineryPartitionCompanion Manual? 0 Play Time 00:47:33 Cumulative 321.9 hours Start 2026.07.03 @ 16:18:41 End 2026.07.03 @ 20:17:11 Sessions 5 Manual Loads 0 Difficulty Rogue Special Mode None Game No. 164 Rogue 164 Adventurer 0 Explorer 0 Win Type - Total 7 Types 4/0/1/1/0/0/0/1/0/0 Lore% 69 Gallery% 69 Achievement% 61 Wizard Run 0 Options --------- Layout 1 ASCII 0 Keyboard 0 Movement Mouse Keybinds 0 Fullscreen 1 Font 18/SmallcapsGlow Map View 54x44 Zoom Use 0% Tactical HUD 1 Map Filters NONE Filters NONE Steam 0 RUN: 928eebb6-43d6-46c3-89f0-e73f7579e74f